{"text_format":"3","workbook":"xlsx","n_sheets":2,"sheets":["Tabelle1","Tabelle2"],"not_rendered":{"images":1,"external_links":1},"read":"whole","date_system":"1900"}

{"sheet":"Tabelle1","index":0,"n_rows":46,"n_cols":11,"rows_kept":46,"merged":[[0,0,0,3],[0,8,0,10],[1,1,1,10],[2,4,2,5],[2,7,2,10],[3,1,3,5],[3,8,3,10],[4,2,4,5],[4,9,4,10],[5,2,5,5],[5,8,5,10],[6,2,6,5],[6,8,6,10],[7,2,7,5],[7,8,7,10],[8,1,8,10],[9,1,9,3],[9,4,9,10],[10,1,10,3],[10,4,10,5],[11,1,11,3],[11,4,11,5],[11,9,11,10],[12,1,12,7],[12,8,12,10],[13,2,13,7],[14,2,14,7],[15,2,15,7],[16,2,16,7],[17,2,17,7],[18,2,18,7],[19,2,19,7],[20,2,20,7],[21,2,21,7],[22,2,22,7],[23,2,23,7],[24,2,24,7],[25,1,25,10],[27,2,27,7],[28,1,28,10],[29,2,29,10],[30,2,30,10],[31,2,31,10],[32,2,32,10],[33,2,33,10],[36,1,36,10],[38,1,38,2],[40,2,40,10],[43,0,43,1]]}
[]
[null,"Auftrag für Zähler-/Gerätewechsel"]
[{"$nulls":7},1]
[null,"Auftraggeber",{"$nulls":5},"Netze BW GmbH ·",{"$f":"VLOOKUP(H3,Tabelle2!A1:E8,3,FALSE)","v":"-"}]
[null,"Name",{"$nulls":5},"Telefon",{"$f":"VLOOKUP(H3,Tabelle2!A1:E8,4,FALSE)","v":"-"}]
[null,"Anschrift",{"$nulls":5},"Fax",{"$f":"VLOOKUP(H3,Tabelle2!A1:E8,5,FALSE)","v":"-"}]
[{"$nulls":7},"Ansprechpartner","Anschlussservice"]
[null,"Telefon",{"$nulls":5},"Datum",{"$f":"TODAY()","v":"2019-11-15"}]
[null,"Anschlussobjekt"]
[null,"Ort, Straße, Hausnummer"]
[null,"Netze BW Nr.",{"$nulls":5},"Eingebaute Sicherheitsgröße",null,null,"A"]
[null,"Erledigungsvermerk Geräteumbau",{"$nulls":5},"Erledigungsdatum Abrechnung"]
[null,"Pauschalpreise für Zähler-/Gerätewechsel auf Kunden- oder Lieferantenwunsch",{"$nulls":6},"(Preisstand 01.01.2018)"]
[null,"Menge","Artikel / Dienstleistung",{"$nulls":5},"netto [€]\nEinzelpreis","brutto [€]\nEinzelpreis","brutto [€]\nGesamtpreis"]
[null,null,"Wechsel SLP1) (z.B. Wechsel 1- auf 2-Energierichtung., Wechsel- auf Drehstrom, 3-Punkt auf eHZ)7)",{"$nulls":5},{"v":85,"d":"85.00"},{"$f":"I15*1.19","v":{"v":101.14999999999999,"d":"101.15"}},{"$f":"IF(B15=\"\",\"\",J15*B15)","v":""}]
[null,null,"Wechsel SLP1) mit Ein- oder Ausbau des TSG2) (z.B. Zweitarif- auf Eintarifzähler)6) 7)",{"$nulls":5},{"v":120,"d":"120.00"},{"$f":"I16*1.19","v":{"v":142.79999999999998,"d":"142.80"}},{"$f":"IF(B16=\"\",\"\",J16*B16)","v":""}]
[null,null,"Einheitspreis SLP1) ab dem zweiten Gerät innerhalb eines Gebäudes (je Gerätewechsel)7)",{"$nulls":5},{"v":60,"d":"60.00"},{"v":71.39999999999999,"d":"71.40"},""]
[null,null,"Wechsel/Ausbau des TSG2)",{"$nulls":5},{"v":85,"d":"85.00"},{"v":101.14999999999999,"d":"101.15"},""]
[null,null,"Wechsel/Einbau des Modems (z.B. Rückbau von Funk- auf Festnetzmodem)",{"$nulls":5},{"v":125,"d":"125.00"},148.75,""]
[null,null,"Niederspannung Wandlertausch, Wechsel von direkt messend auf Wandlermessung,\nVersetzung5) der SLP1)- oder LGZ3)-Messung (z.B. in eine neue Kundenstation) oder \nWechsel LGZ3) (z.B. von 1- auf 2-Energierichtungszählung)7)\n! Mit dieser Position ist nicht der Zählverfahrenswechsel (LGZ auf SLP oder umgekehrt) gemeint, denn der Zählverfahrenswechsel kann nur vom Lieferanten beauftrag werden!\nPreise für Zählverfahrenswechsel im Rücklieferbereich von SEP auf EGZ oder umgekehrt sind auf unserer Homepage unter dem Suchbegriff „zusätzliche Serviceleistungen“ veröffentlicht.",{"$nulls":5},{"v":260,"d":"260.00"},{"v":309.4,"d":"309.40"},""]
[null,null,"PIN-Änderung beim EDL21 nach §21b (3a) und (3b) EnWG a.F., bzw. EDL40 entspr. Zählerwechsel",{"$nulls":5},{"v":85,"d":"85.00"},{"v":101.14999999999999,"d":"101.15"},""]
[null,null,"Erneuter Zählereinbau nach vorherigem Ausbau4)",{"$nulls":5},{"v":85,"d":"85.00"},{"v":101.14999999999999,"d":"101.15"},""]
[null,null,"Einrichtung der „Steuerimpulse“ oder der „Summierung vor Ort“ (zur einmaligen Einrichtung über 145,- € fällt ein jährliches MSB-Entgelt von 55,- €/Jahr für die „Steuerimpulse“, bzw. 250,- €/Jahr für die „Summierung vor Ort“ an); abrechnungsrelevant bleiben Messwerte des Zählers",{"$nulls":5},{"v":145,"d":"145.00"},{"v":172.54999999999998,"d":"172.55"},""]
[{"$nulls":9},{"v":0,"d":"0.00"},""]
[{"$nulls":9},{"v":0,"d":"0.00"},""]
[]
[null,null,"Gerätewechsel wegen"]
[null,null,"Gesamtsumme (Bitte überweisen Sie den Betrag erst nach Erhalt der Rechnung)",{"$nulls":7},{"$f":"IF(SUM(K15:K25)>0,SUM(K15:K25),\"\")","v":""}]
[null,"Nichtzutreffendes bei der Beispielnennung bitte streichen, oder eine der beiden Freitextlinien zur Präzisierung nützen"]
[null,"1)","SLP: Jahresarbeitszähler, entspricht: Ferraris-Zähler, elektronischer Zähler, EDL21 und EDL40, sowie moderne Messeinrichtung (mME).\nAusführungsvarianten: Wechsel- oder Drehstromzähler in Ein- oder Zweitarifausführung, sowie für eine oder 2 Energierichtungen"]
[null,"2)","TSG: Tarifschaltgerät, entspricht Tonfrequenz- oder Funkrundsteuergerät, Schaltuhren"]
[null,"3)","LGZ: Lastgangzähler, gilt für direkt messende, sowie für Wandlerzähler in der Nieder- oder Mittelspannung"]
[null,"4)","Zum Ansatz kommt § 14 Abs. 3 NAV. Die Pauschale wird fällig, bei erneutem Einbau des Zählers innerhalb von 4 Monaten nach der Beauftragung \nzum Zählerausbau, z.B. Mietwohnung, die max. 4 Monate leer stand. Bei Anlagen, die mehr als 4 Monate ohne Zähler waren, bedarf es einer Fertigstellungsanzeige"]
[null,"5)","Versetzung gilt nur für Bestandsanlagen"]
[null,"6)","Ausnahme stellt die Elektroheizung mit gemeinsamer Messung dar, hierbei fallen keine Wchselkosten an"]
[null,"7)","Bei Verdrahtungsarbeiten am Zählerfeld ist eine Fertigstellungsanzeige vom Elektroinstallateur notwendig"]
[null,"Die o. a. Bruttobeträge enthalten die gesetzliche Umsatzsteuer zum Zeitpunkt der Ausführung (z. Zt. 19 %). Diese Kostenpauschalen gelten ausschließlich für die Ausführung der Arbeiten innerhalb der regulären Arbeitszeiten, diese sind Mo – Fr von 7.00 – 16.00 Uhr."]
[]
[null,"Auftragserteilung"]
[null,"Ort, Datum, Unterschrift Auftraggeber"]
[null,null,"Hiermit erteile ich der Netze BW GmbH den Auftrag, auf der Basis der oben gekennzeichneten Position die Arbeit zum Festbetrag bzw. nach Aufwand, auszuführen. Nimmt ein Installateur Montagen, bzw. Erweiterungen innerhalb des Zählerplatzes vor, erfolgt der Einbau/Wechsel von Zählern und Geräten nur in TAB-gerechten Zählerplätzen. Diese sind durch einen eingetragenen Installateur bei der Netze BW fertig zu melden.\nFür den Umbau der Kundenanlage füllt eine separate REchnung durch den Installateur an.\nHiermit betätige ich, dass bei Maßnahmen, die auch meinen aktuellen Energielieferanten betreffen, mir dessen Einverständniserklärung vorliegt."]
[null,"Bitte senden Sie dieses Formular unterschrieben an Ihr zuständiges Reguionalzentrum (Adresse siehe oben oder im Internet unter "]
[null,"http://www.netze-bw.de/unternehmen/ueber-uns/standorte-in-bawue/index.html",{"$nulls":3},")."]
["Netze BW GmbH",null,{"$f":"VLOOKUP(H3,Tabelle2!A1:E8,2,FALSE)","v":"bitte wählen"}]
["Sitz der Gesellschaft: Stuttgart · Amtsgericht Stuttgart · HRB Nr. 747734"]
["Vorsitzender des Aufsichtsrats: Dr. Hans-Josef Zimmer · Geschäftsführer: Dr. Christoph Müller (Vorsitzender), Dr. Martin Konermann, Bobo Moray"]

{"sheet":"Tabelle2","index":1,"n_rows":17,"n_cols":5,"rows_kept":17,"hidden":true}
[1,"bitte wählen","-","-","-"]
[2,"Heuberg-Bodensee","Eltastraße 1-5 · 78532 Tuttlingen","07461/709-","07461/709-488"]
[3,"Mittlerer Neckar - Gebiet Alb-Neckar","Hahnweidstraße 44 · 73230 Kirchheim u. Teck","07021/8009-","07021/8009-59520"]
[4,"Mittlerer Neckar - Gebiet Schwarzwald-Neckar","Heinrich-Lanz-Str. 3 · 70825 Korntal-Münchingen ","07150/9137-","0721/9142-1748"]
[5,"Neckar-Franken","Weipertstraße 41 · 74076 Heilbronn","07131/1234-","0721/9142-1544"]
[6,"Nordbaden","Zeppelinstraße 15-19 · 76275 Ettlingen","07243/180-","07243/180-176"]
[7,"Oberschwaben","Adolf-Pirrung-Straße 7 · 88400 Biberach","07351/53-","07351/53-2171"]
[8,"Rheinhausen","Herbolzheimer Straße 36 · 79365 Rheinhausen","07643/808-","07643/808-133"]
[]
[]
[null,"bitte wählen"]
[null,"Versetzung Zählerschrank"]
[null,"Einbau PV-Anlage"]
[null,"Einbau BHKW"]
[null,"Umbau mechan. auf elektron. Zähler"]
[null,"Umbau Wechsel- auf Drehstromzähler"]
[null,"Umbau von 1- auf 2-Energierichtungen"]